Cogmind - Beta 16 @@@ ROGUE MODE // 2025.11.09 @ 20:34:56 Player: Mozco Result: Self-destructed Performance ------------- Evolutions (5) 2500 Regions Visited (15) 3000 Robots Destroyed (177) 885 Value Destroyed (6026) 6026 Prototype IDs (32) 640 Alien Tech Used (0) 0 Bonus (2132) 2132 TOTAL SCORE: 15183 Bonus ------- High Alert Combat Kills 171 Follower Combat Kills 1548 Network Hubs Disabled 400 Met Data Miner 300 Built Enhanced Grunts 300 A7 Reached Mainframe 300 Met R17 at Cetus 500 Friendly Fire -1387 Cogmind --------- Core Integrity 280/1000 Matter 294/300 Energy 375/375 System Corruption 7% Temperature Cool (40) Movement Walking (190) Ox1 Location -5/Factory Parts ------- > --- POWER (2) -------- Light Angular Momentum Engine Antimatter Reactor > --- PROPULSION (5) --- Enhanced Flexi-carbon Leg Enhanced Flexi-carbon Leg > --- UTILITY (4) ------ Advanced Heat Sink High-capacity Storage Unit Centrium Medium Armor Plating > --- WEAPON (6) ------- Advanced Variable Charge Gun > --- INVENTORY (20) --- Quantum Reactor Quantum Reactor Improved Energy Well (282) Advanced Energy Well (500) Transmission Jammer Centrium Medium Armor Plating Centrium Medium Armor Plating Medium Insulated Plating Peak State ------------ > --- POWER ------------ Quantum Reactor Quantum Reactor > --- PROPULSION ------- Flexi-carbon Leg Flexi-carbon Leg Armored Leg Enhanced Flexi-carbon Leg Enhanced Flexi-carbon Leg > --- UTILITY ---------- Advanced Cooling System High-capacity Storage Unit Improved Hacking Suite Improved System Shield > --- WEAPON ----------- Cooled Pulse Rifle Thermic Laser Advanced Variable Charge Gun Advanced Variable Charge Gun Advanced Variable Charge Gun Neutron Cannon > --- INVENTORY -------- Enhanced Flexi-carbon Leg Enhanced Flexi-carbon Leg Enhanced Flexi-carbon Leg Advanced Heat Sink Advanced Energy Well Transmission Jammer Centrium Medium Armor Plating Centrium Medium Armor Plating Centrium Medium Armor Plating Centrium Medium Armor Plating Medium Insulated Plating Advanced Variable Charge Gun Neutron Cannon Neutron Cannon [Rating: 115] Favorites ----------- Power Heavy Deuterium Engine Engine Heavy Deuterium Engine Power Core Neutrino Core Reactor Antimatter Reactor Propulsion Titanium Leg Leg Titanium Leg Utility Large Storage Unit Device Improved Cooling System Storage Large Storage Unit Processor Improved Signal Interpreter Hackware Hacking Suite Protection Centrium Medium Armor Plating Weapon Cooled Pulse Rifle Energy Gun Cooled Pulse Rifle Energy Cannon Plasma Cannon Ballistic Gun Assault Rifle Launcher Heavy Rocket Launcher Build | -11 -10 -9 -8 -8 -7 -7 -7 -7 -6 -6 -6 -6 -6 -6 -5 ------- Run | Yrd Mat Mat Mat Sto Fac Low Low Dat Pro Fac Ext Cet Arc Hub Fac Slots Evolved 10 | . . 2 2 . 2 . . . . 2 . . . . 2 Power 1 | . . . . . . . . . . 1 . . . . . Propulsion 3 | . . 2 . . . . . . . . . . . . 1 Utility 2 | . . . 1 . 1 . . . . . . . . . . Weapon 4 | . . . 1 . 1 . . . . 1 . . . . 1 Parts Attached 146 | 7 1 22 5 13 17 2 3 9 7 2 18 13 5 11 11 Power 19 | 1 . 2 . 2 1 1 . 1 . . 2 1 1 3 4 Engine 11 | 1 . 2 . 2 1 1 . . . . 1 1 . . 2 Core 3 | . . . . . . . . . . . 1 . 1 . 1 Reactor 5 | . . . . . . . . 1 . . . . . 3 1 Propulsion 43 | 2 1 12 . 6 2 . 1 . 4 1 6 . . 4 4 Treads . | . . . . . . . . . . . . . . . . Leg 43 | 2 1 12 . 6 2 . 1 . 4 1 6 . . 4 4 Wheel . | . . . . . . . . . . . . . . . . Hover . | . . . . . . . . . . . . . . . . Flight . | . . . . . . . . . . . . . . . . Utility 39 | 1 . 2 3 3 7 1 . 2 1 . 5 6 3 3 2 Device 17 | . . 2 . 2 3 1 . 1 1 . 2 1 3 . 1 Storage 6 | 1 . . 2 . . . . . . . . 1 . 1 1 Processor 1 | . . . . . 1 . . . . . . . . . . Hackware 4 | . . . . 1 1 . . . . . . . . 2 . Protection 11 | . . . 1 . 2 . . 1 . . 3 4 . . . Artifact . | . . . . . . . . . . . . . . . . Weapon 45 | 3 . 6 2 2 7 . 2 6 2 1 5 6 1 1 1 Energy Gun 24 | . . 2 . 1 4 . . 3 . 1 5 6 1 . 1 Energy Cannon 10 | . . 1 2 . 1 . 1 2 2 . . . . 1 . Ballistic Gun 4 | 3 . 1 . . . . . . . . . . . . . Ballistic Cannon . | . . . . . . . . . . . . . . . . Launcher 7 | . . 2 . 1 2 . 1 1 . . . . . . . Special Weapon . | . . . . . . . . . . . . . . . . Impact Weapon . | . . . . . . . . . . . . . . . . Slashing Weapon . | . . . . . . . . . . . . . . . . Piercing Weapon . | . . . . . . . . . . . . . . . . Special Melee Weapon . | . . . . . . . . . . . . . . . . Unidentified Prototypes 11 | . . 1 . 2 2 . . 1 1 . . 2 . 1 1 Corrupted Parts 14 | . . 1 . 1 . . . 1 6 . 2 . 1 2 . System Corruption 84 | . . 1 . 9 . . . 6 35 . 7 . 12 14 . Parts Lost 40 | . . 3 . 1 2 5 . 5 . . 1 . . 4 19 Power 7 | . . . . 1 . 1 . 1 . . . . . 2 2 Propulsion 14 | . . 2 . . 1 3 . . . . . . . 1 7 Utility 5 | . . . . . 1 . . 2 . . . . . . 2 Weapon 14 | . . 1 . . . 1 . 2 . . 1 . . 1 8 Highest Loss Streak 17 | . . 2 . 1 1 5 . 3 . . 1 . . 4 17 To Critical Strikes 1 | . . . . . . . . . . . 1 . . . . Average Backups 14 | 1 5 7 8 14 14 14 13 13 15 14 14 18 19 19 15 Power 1 | . 1 1 1 1 . . . . . . . 2 3 2 2 Propulsion 3 | . 1 2 1 2 2 1 . 1 5 5 4 5 5 5 3 Utility 4 | . . . 1 3 5 4 5 5 5 5 5 6 6 7 7 Weapon 5 | . 3 4 5 6 6 7 8 7 5 4 4 4 5 5 2 Tool/Special . | . . . . . . . . . . . . . . . . Unused Backups 13 | . . 3 . 4 5 1 . . . . . . . . . Power 5 | . . 2 . 1 2 . . . . . . . . . . Propulsion . | . . . . . . . . . . . . . . . . Utility 2 | . . . . 1 . 1 . . . . . . . . . Weapon 6 | . . 1 . 2 3 . . . . . . . . . . Tool/Special . | . . . . . . . . . . . . . . . . Average Slot Usage (%) 97 | . 85 85 96 98 99 99 99 97 100 93 97 100 99 98 95 Engine 6 | . 14 11 9 8 7 7 7 4 . . 3 6 6 1 3 Core 1 | . . . . . . . . . . . 2 6 6 5 2 Reactor 1 | . . . . . . . . 1 7 6 3 . . 4 3 Leg 29 | . 28 33 36 35 29 29 29 30 30 26 26 26 26 26 28 Device 10 | . . 7 9 9 10 14 14 10 15 13 8 6 12 7 7 Storage 7 | . 14 11 10 9 7 7 7 7 7 6 6 6 6 6 5 Processor 3 | . . . . . 6 7 7 7 7 6 3 . . . . Hackware 1 | . . . . 7 . . . . . . . . . 10 6 Protection 3 | . . . 4 1 3 . . 1 . . 6 12 6 1 1 Energy Gun 17 | . . 8 . 5 17 15 12 10 15 20 24 33 33 27 15 Energy Cannon 7 | . . 7 16 12 7 7 14 13 9 6 2 . . 4 15 Launcher 4 | . . 1 9 8 5 6 2 5 4 6 4 . . . . Peak Build Rating 115 | 6 6 22 29 30 51 51 53 59 71 62 74 102 102 103 115 Average Rating 55 | 4 6 10 26 26 39 49 51 50 57 60 69 92 97 100 106 On Entrance 48 | . 6 6 22 28 26 51 44 51 59 56 62 73 102 97 92 Avg Prop Armor Cover (%) 2 | . . . . . 4 . . . . . . . . 3 2 Naked Turns . | . . . . . . . . . . . . . . . . Heaviest Build 122 | 14 14 21 46 46 62 62 62 63 63 63 84 102 102 103 122 Greatest Support 124 | 20 20 68 68 61 64 62 71 71 71 71 81 84 84 92 124 Greatest Overweight (x) 2 | . . 1 . 1 1 1 1 . . . 1 1 1 1 2 Average Overweight (x) . | . . . . . . . . . . . . . 1 . . Largest Inventory Capacity 20 | 8 8 8 15 15 15 15 15 15 15 15 15 20 20 20 20 Average Capacity 15 | 6 8 8 10 15 15 15 15 15 15 15 15 19 20 20 20 Most Carried 20 | 2 8 8 12 15 15 15 14 15 15 15 15 20 20 20 17 Average Carried 14 | 1 6 7 8 14 14 14 13 13 15 14 14 18 19 19 15 Final Capacity 20 | 8 8 8 15 15 15 15 15 15 15 15 15 20 20 20 20 Final Carried 20 | 2 8 8 12 15 14 12 14 15 15 15 15 20 20 18 8 Class Distribution -------------------- 29% | Skirmisher 15% | Scavenger-Tank 13% | Tank 9% | Scavenger-Gunner 8% | Commander-Tank 6% | Scavenger-Executioner 5% | Gunner 4% | Mutant 3% | Scavenger-Skirmisher 3% | Scavenger-Mutant Dominant Class ---------------- Mutant | -10/Materials Scavenger-Mutant | -9/Materials Tank | -8/Materials Scavenger-Gunner | -8/Storage Tank | -7/Factory Skirmisher | -7/Lower Caves Skirmisher | -7/Lower Caves Skirmisher | -7/Data Miner Skirmisher | -6/Proximity Caves Skirmisher | -6/Factory Scavenger-Tank | -6/Extension Commander-Tank | -6/Cetus Scavenger-Tank | -6/Archives Scavenger-Gunner | -6/Hub_04(d) Scavenger-Executioner | -5/Factory Resources | -11 -10 -9 -8 -8 -7 -7 -7 -7 -6 -6 -6 -6 -6 -6 -5 ----------- Run | Yrd Mat Mat Mat Sto Fac Low Low Dat Pro Fac Ext Cet Arc Hub Fac Matter Collected 3195 | 153 152 503 . 303 438 169 50 288 92 . 302 255 115 106 269 Remotely . | . . . . . . . . . . . . . . . . Salvage Created 7197 | . 214 1017 94 1915 1160 295 42 413 74 . 810 145 312 46 660 Parts 374 | . 15 70 4 108 60 11 . 14 10 . 38 6 18 . 20 Haulers Intercepted 12 | . . 2 1 5 3 . . . . . . . . . 1 Recyclers Shooed 8 | . . 5 . 2 1 . . . . . . . . . . Parts Field Recycled . | . . . . . . . . . . . . . . . . Retrieved Matter . | . . . . . . . . . . . . . . . . Parts Self-Destructed 20 | . . . . . . 10 . . 10 . . . . . . Prevented . | . . . . . . . . . . . . . . . . Parts Restored . | . . . . . . . . . . . . . . . . Kills | -11 -10 -9 -8 -8 -7 -7 -7 -7 -6 -6 -6 -6 -6 -6 -5 ------- Run | Yrd Mat Mat Mat Sto Fac Low Low Dat Pro Fac Ext Cet Arc Hub Fac Combat Hostiles Destroyed 122 | . 6 24 1 29 20 8 . 4 5 . 16 . . 1 8 Guns 42 | . 6 10 . 3 6 1 . 1 3 . 8 . . 1 3 Cannons 38 | . . 8 1 18 3 2 . 1 . . 1 . . . 4 AOE 32 | . . 6 . 6 9 4 . . 2 . 4 . . . 1 Classes Destroyed 18 | . 3 5 . 2 4 1 . . 1 . 1 . . . 1 Worker 2 | . . . . . 2 . . . . . . . . . . Builder 1 | . . . . 1 . . . . . . . . . . . Tunneler 3 | . . . . . 3 . . . . . . . . . . Hauler 12 | . . 2 1 5 3 . . . . . . . . . 1 Recycler 12 | . . 2 . 5 4 . . . . . . . . . 1 Mechanic 1 | . . 1 . . . . . . . . . . . . . Operator 13 | . . 1 . 2 1 . . . . . . . 9 . . Drone 2 | . . . . . . . . . 2 . . . . . . Watcher 9 | . 1 1 . 1 3 . . . . . 2 1 . . . Swarmer 34 | . 3 10 . 6 8 . . . 3 . 4 . . . . Grunt 41 | . 3 10 . 12 1 6 . . . . 4 . . . 5 Brawler 1 | . . . . . . 1 . . . . . . . . . Duelist 2 | . . . . 1 . 1 . . . . . . . . . Sentry 27 | . . 4 1 10 4 . . . . . 5 . . 1 2 Specialist 1 | . . . . . . . . . . . . . . . 1 Hunter 6 | . . . . . 4 . . . . . 2 . . . . Programmer 3 | . . . . . 3 . . . . . . . . . . Behemoth 1 | . . . . . . . . . . . 1 . . . . Enhanced Grunt 4 | . . . . . . . . 4 . . . . . . . Decomposer 1 | . . . . . . . . . 1 . . . . . . Guerrilla 1 | . . . . . . . . . . . . 1 . . . Best Kill Streak 8 | . 3 6 1 7 8 4 . 2 3 . 4 1 2 1 3 Combat Bots Only 7 | . 3 4 1 7 4 4 . 2 3 . 4 . . 1 3 Max Kills in Single Turn 4 | . 1 3 1 3 2 2 . 1 2 . 4 1 1 1 1 Gunslinging 1 | . . . . . . . . . . . 1 . . . . Exploded 4 | . . 3 . 3 2 2 . . 2 . 4 . . . 1 Melee . | . . . . . . . . . . . . . . . . Uniques/NPCs Destroyed 1 | . . . . . . . . . . . . 1 . . . A7 (-6/Cetus) Combat | -11 -10 -9 -8 -8 -7 -7 -7 -7 -6 -6 -6 -6 -6 -6 -5 -------- Run | Yrd Mat Mat Mat Sto Fac Low Low Dat Pro Fac Ext Cet Arc Hub Fac Hostile Shots Fired 977 | . 19 102 2 101 211 36 . 34 12 . 101 11 9 64 275 Missed 297 | . 6 28 2 40 96 6 . 14 1 . 34 6 4 10 50 Hits 680 | . 13 74 . 61 115 30 . 20 11 . 67 5 5 54 225 Melee 4 | . . . . 2 . 2 . . . . . . . . . Projectile 676 | . 13 74 . 59 115 28 . 20 11 . 67 5 5 54 225 Critical Strikes 23 | . . . . 4 5 3 . . . . 3 . . 7 1 Part Disruptions 11 | . . . . . . . . 1 . . . . . 2 8 Damage Taken 10874 | . 143 779 . 924 1246 602 . 923 107 . 636 178 114 1714 3508 Core 1555 | . . 124 . 76 137 33 . 138 30 . 43 . . 254 720 Absorbed by Shields 282 | . . . . . . . . . . . 260 22 . . . Ignored by Resistances 42 | . . . . . 42 . . . . . . . . . . Regen/Repaired (Parts) 619 | . . . . 394 225 . . . . . . . . . . Core Remaining (%) 78 | 100 100 69 . 86 . . . . 51 . . . . 65 . Volleys Fired 448 | . 19 80 4 91 70 17 5 20 5 5 31 20 42 6 33 Largest 6 | . 2 2 3 3 4 3 1 4 4 1 4 5 4 5 6 Hottest 515 | . 40 130 169 169 263 200 39 231 253 80 261 346 260 355 515 Shots Fired 1064 | . 38 144 9 180 195 33 5 39 18 5 106 42 125 30 95 Gun 668 | . 38 90 . 44 123 17 . 13 9 2 96 42 125 25 44 Cannon 353 | . . 52 8 130 59 11 . 17 8 3 9 . . 5 51 Launcher 43 | . . 2 1 6 13 5 5 9 1 . 1 . . . . Special . | . . . . . . . . . . . . . . . . Kinetic 88 | . 38 50 . . . . . . . . . . . . . Thermal 933 | . . 92 8 174 182 28 . 30 17 5 105 42 125 30 95 Explosive 22 | . . 1 . . 9 5 5 . 1 . 1 . . . . Electromagnetic 21 | . . 1 1 6 4 . . 9 . . . . . . . Robot Hit Streak 23 | . 9 9 5 20 15 6 . 6 3 . 23 7 9 9 9 Robot Miss Streak 10 | . 2 7 1 5 8 2 . 4 2 . 3 3 10 4 4 Penetration Max . | . . . . . . . . . . . . . . . . Secondary Targets 5 | . 1 . . . . . . . . . 4 . . . . Max Gunslinging Chain 2 | . 1 . . . . . . . . . 2 . . . . Shots Hit Robots 638 | . 26 78 5 122 118 20 . 23 9 . 86 17 67 14 53 Core Hits 418 | . 11 41 2 103 98 15 1 15 7 . 58 13 30 5 19 Critical Kills 3 | . . . . 2 1 . . . . . . . . . . Critical Parts Destroyed 1 | . . 1 . . . . . . . . . . . . . Critical Strikes 22 | . . 2 . 2 2 . . 1 . . 3 . 9 2 1 Burn 18 | . . 1 . . 1 . . 1 . . 3 . 9 2 1 Meltdown 3 | . . . . 2 1 . . . . . . . . . . Destroy 1 | . . 1 . . . . . . . . . . . . . Melee Attacks . | . . . . . . . . . . . . . . . . Impact . | . . . . . . . . . . . . . . . . Slashing . | . . . . . . . . . . . . . . . . Piercing . | . . . . . . . . . . . . . . . . Sneak Attacks . | . . . . . . . . . . . . . . . . Combat Hostiles . | . . . . . . . . . . . . . . . . Follow-up Attacks . | . . . . . . . . . . . . . . . . Damage Inflicted 16917 | . 334 1495 107 2873 3067 1126 66 688 405 . 2302 463 1435 452 2104 Guns 8646 | . 334 803 . 687 1516 246 . 92 124 . 1849 463 1430 375 727 Cannons 4631 | . . 512 107 1643 654 180 . 184 73 . 152 . . 76 1050 Explosions 3521 | . . 180 . 497 897 700 66 412 208 . 243 . . . 318 Melee . | . . . . . . . . . . . . . . . . Ramming 119 | . . . . 46 . . . . . . 58 . 5 1 9 Kinetic 708 | . 334 374 . . . . . . . . . . . . . Thermal 13330 | . . 941 107 2523 2326 426 . 370 197 . 2001 463 1430 451 2095 Explosive 1893 | . . 121 . . 555 700 66 . 208 . 243 . . . . Electromagnetic 867 | . . 59 . 304 186 . . 318 . . . . . . . Impact . | . . . . . . . . . . . . . . . . Slashing . | . . . . . . . . . . . . . . . . Piercing . | . . . . . . . . . . . . . . . . Highest Corruption 49 | . . 1 . 9 3 8 8 14 49 . 7 7 14 31 7 Average Corruption 4 | . . 1 . 9 2 3 8 9 16 . 6 2 4 3 3 Corruption Purged 18 | . . . . . . . . . . . . 5 13 . . Corruption Blocked . | . . . . . . . . . . . . . . . . Effects 119 | . . . . . 16 28 18 9 18 . 1 10 13 5 1 Message Errors 31 | . . . . . 4 7 7 1 3 . 1 1 5 2 . Matter Fused 30 | . . . . . 6 6 4 2 4 . . 1 6 1 . Heat Flow Errors 13 | . . . . . 2 2 5 1 . . . 3 . . . Energy Discharges 20 | . . . . . 3 6 1 1 5 . . 3 . 1 . Parts Rejected 3 | . . . . . . 1 . . . . . 1 . . 1 Parts Fused 2 | . . . . . . 2 . . . . . . . . . Data Loss (minor) 7 | . . . . . 1 1 . 2 2 . . 1 . . . Data Loss (major) 5 | . . . . . . 3 . . 1 . . . 1 . . Misfires 4 | . . . . . . . . . 3 . . . . 1 . Alerts 2 | . . . . . . . 1 . . . . . 1 . . Weapon Failures 2 | . . . . . . . . 2 . . . . . . . Overload Shots 11 | . . . . . . 2 . 1 . 2 5 1 . . . Effects 1 | . . . . . . . . . . . 1 . . . . Energy Bleed 1 | . . . . . . . . . . . 1 . . . . Overflow Damage 262 | . . 2 . 46 95 7 . . 52 . . . . 36 24 Projectiles 92 | . . 2 . 45 10 . . . 13 . . . . . 22 Explosions 170 | . . . . 1 85 7 . . 39 . . . . 36 2 Melee . | . . . . . . . . . . . . . . . . Knockbacks 2 | . . . . 1 . . . . . . . . . 1 . Impact 2 | . . . . 1 . . . . . . . . . 1 . Kinetic . | . . . . . . . . . . . . . . . . Secondary . | . . . . . . . . . . . . . . . . Self-Inflicted Damage 339 | . . . . 19 . 115 . . . . . . . 101 104 Shots 7 | . . . . 1 . 3 . . . . . . . 1 2 Rammed . | . . . . . . . . . . . . . . . . Targets Rammed 12 | . . . . 4 1 . . . . . 3 . 1 1 2 Kicked 12 | . . . . 4 1 . . . . . 3 . 1 1 2 Crushed . | . . . . . . . . . . . . . . . . Highest Temperature 719 | . 2 303 96 505 365 91 242 324 196 . 405 324 159 385 719 Average Temperature 111 | . 2 86 48 114 104 40 100 99 65 . 120 119 35 141 215 Received Heat Transfer 2667 | . 60 198 . 387 162 306 . . . . 186 27 18 189 1134 Effects 26 | . . . . 2 3 . . 1 . . . . . . 20 Shutdowns 7 | . . . . . 2 . . . . . . . . . 5 Energy Bleed 2 | . . . . . . . . 1 . . . . . . 1 Interference 7 | . . . . 1 . . . . . . . . . . 6 Matter Decay 2 | . . . . . . . . . . . . . . . 2 Short Circuit 4 | . . . . . 1 . . . . . . . . . 3 Damage (minor) 1 | . . . . . . . . . . . . . . . 1 Damage (major) 1 | . . . . 1 . . . . . . . . . . . Damage (core) 2 | . . . . . . . . . . . . . . . 2 Siege Activations . | . . . . . . . . . . . . . . . . Martial Activations . | . . . . . . . . . . . . . . . . Shielding Activations . | . . . . . . . . . . . . . . . . Robots Disrupted 1 | . . . . . . . . . . . . . . . 1 Combat Hostiles 1 | . . . . . . . . . . . . . . . 1 Robots Corrupted 2 | . . . . . . . . 2 . . . . . . . Combat Hostiles 2 | . . . . . . . . 2 . . . . . . . Parts Fried 9 | . . . . . . . . 8 . . . 1 . . . Impact Corruptions . | . . . . . . . . . . . . . . . . Robots Melted 8 | . . . . 2 2 1 . . . . 3 . . . . Combat Hostiles 8 | . . . . 2 2 1 . . . . 3 . . . . Parts Melted 53 | . . 7 . 9 8 1 . 3 . . 16 . 7 2 . Heat Transferred 23255 | . . 2146 185 4028 3880 783 . 979 259 . 4259 602 3907 674 1553 Parts Sabotaged . | . . . . . . . . . . . . . . . . Parts Stolen . | . . . . . . . . . . . . . . . . Parts Stripped . | . . . . . . . . . . . . . . . . Power Chain Reactions 6 | . . . . 2 1 . . 1 . . . . . . 2 Alert | -11 -10 -9 -8 -8 -7 -7 -7 -7 -6 -6 -6 -6 -6 -6 -5 ------- Run | Yrd Mat Mat Mat Sto Fac Low Low Dat Pro Fac Ext Cet Arc Hub Fac Maximum Alert Level 2 | . . 2 . 2 2 . . . . . 1 . . 2 1 Low Security (%) 58 | 100 100 49 100 8 38 . . . . 100 70 100 100 10 95 Level 1 29 | . . 43 . 52 55 . . . . . 29 . . 10 4 Level 2 11 | . . 6 . 39 6 . . . . . . . . 79 . Level 3 . | . . . . . . . . . . . . . . . . Level 4 . | . . . . . . . . . . . . . . . . Level 5 . | . . . . . . . . . . . . . . . . High Security . | . . . . . . . . . . . . . . . . Max Security . | . . . . . . . . . . . . . . . . Peak Influence 611 | . 108 440 178 611 423 . . . . 150 367 168 195 576 264 Initial 264 | . . 32 178 61 247 . . . . 150 15 168 14 . 264 Average 199 | . 49 204 154 376 213 . . . . 95 175 91 86 421 108 Influence Increases 5892 | . 168 716 37 975 803 180 . . 70 152 850 355 327 850 409 Destroy 0b10 Robot/C 2900 | . 120 480 20 580 400 160 . . 60 . 420 160 80 260 160 Destroy 0b10 Robot/NC 295 | . 5 35 5 70 80 . . . 10 . 20 10 45 5 10 Destroy Leader 664 | . 32 126 12 172 142 20 . . . . 56 . . 72 32 Allied During Kill 835 | . . . . . . . . . . . 221 170 125 319 . Successful Hack 231 | . 10 34 . 18 53 . . . . . 53 . . 8 55 Select Force Hacks 50 | . . . . . . . . . . . . . . 50 . Disable Machine 390 | . . 15 . 60 90 . . . . . 60 . 75 30 60 Destroy Structure 287 | . 1 11 . 15 38 . . . . 2 20 15 2 91 92 Advance Influence 150 | . . . . . . . . . . 150 . . . . . Lose Combat Pursuer 90 | . . 15 . 60 . . . . . . . . . 15 . Influence Decreases 5885 | . 90 370 316 576 931 548 48 . 70 120 581 619 364 310 942 Entered New Map 1287 | . . 46 246 84 297 155 10 . . . 17 133 23 . 276 Time Decay 3718 | . 90 294 70 482 614 363 38 . 70 120 514 246 321 170 326 Lost Part 330 | . . 30 . 10 20 30 . . . . 10 . . 40 190 Lost Ally 400 | . . . . . . . . . . . 40 240 20 100 . Purge Threat 150 | . . . . . . . . . . . . . . . 150 Squads Dispatched 29 | . 2 5 . 4 7 . . . . 1 1 . . 4 5 Investigation 11 | . 1 1 . 1 3 . . . . 1 1 . . 3 . Extermination 4 | . . . . . 3 . . . . . . . . . 1 Reinforcement 13 | . 1 4 . 2 1 . . . . . . . . 1 4 Assault . | . . . . . . . . . . . . . . . . Garrison 1 | . . . . 1 . . . . . . . . . . . Intercept . | . . . . . . . . . . . . . . . . Searches Triggered . | . . . . . . . . . . . . . . . . Construction Impeded 1 | . . . . . . . . . . . . . . . 1 Haulers Reinforced 2 | . . . . . 1 . . . . . . . . . 1 Active Scanning Responses . | . . . . . . . . . . . . . . . . Cargo Convoy Interrupts . | . . . . . . . . . . . . . . . . Stealth | -11 -10 -9 -8 -8 -7 -7 -7 -7 -6 -6 -6 -6 -6 -6 -5 --------- Run | Yrd Mat Mat Mat Sto Fac Low Low Dat Pro Fac Ext Cet Arc Hub Fac Distress Signals 15 | . 1 2 . 2 1 . . . . . 4 2 . 1 2 Communications Jammed 1 | . . . . . . . . . . . . . 1 . . Distress Signals 1 | . . . . . . . . . . . . . 1 . . Times Spotted 232 | . 10 35 2 37 35 8 . 5 5 . 27 12 14 23 19 Peak Tracking Total 12 | . 3 7 1 4 4 4 . 3 3 . 4 5 2 12 5 Tactical Retreats 6 | . . 1 . 4 . . . . . . . . . 1 . Traps | -11 -10 -9 -8 -8 -7 -7 -7 -7 -6 -6 -6 -6 -6 -6 -5 ------- Run | Yrd Mat Mat Mat Sto Fac Low Low Dat Pro Fac Ext Cet Arc Hub Fac Traps Triggered 5 | . 1 1 . 2 . . . . . . 1 . . . . Indirectly . | . . . . . . . . . . . . . . . . Trap Hack Attempts . | . . . . . . . . . . . . . . . . Triggered . | . . . . . . . . . . . . . . . . Disarmed . | . . . . . . . . . . . . . . . . Reprogrammed . | . . . . . . . . . . . . . . . . Reused . | . . . . . . . . . . . . . . . . Traps Extracted . | . . . . . . . . . . . . . . . . Installed . | . . . . . . . . . . . . . . . . Triggered . | . . . . . . . . . . . . . . . . Machines | -11 -10 -9 -8 -8 -7 -7 -7 -7 -6 -6 -6 -6 -6 -6 -5 ---------- Run | Yrd Mat Mat Mat Sto Fac Low Low Dat Pro Fac Ext Cet Arc Hub Fac Machines Disabled 28 | . . 1 . 4 6 . . 1 . . 4 1 5 2 4 Max in Single Turn 2 | . . 1 . 1 2 . . 1 . . 1 1 1 1 1 Garrison Access 3 | . . . . 1 1 . . . . . . . . . 1 Network Hub 2 | . . . . . . . . . . . . . . 2 . Machines Repaired . | . . . . . . . . . . . . . . . . Machines Dismantled . | . . . . . . . . . . . . . . . . Machines Sabotaged 1 | . . . . . . . . . . . . . . 1 . Overloaded Fab Kills . | . . . . . . . . . . . . . . . . Hacking | -11 -10 -9 -8 -8 -7 -7 -7 -7 -6 -6 -6 -6 -6 -6 -5 --------- Run | Yrd Mat Mat Mat Sto Fac Low Low Dat Pro Fac Ext Cet Arc Hub Fac Machines Accessed 60 | . 3 6 . 10 10 . . 3 . 3 14 2 . 3 6 Terminals 45 | . 3 6 . 6 5 . . . . 2 13 2 . 3 5 Fabricators 2 | . . . . . 1 . . . . 1 . . . . . Repair Stations 5 | . . . . 2 2 . . . . . 1 . . . . Recycling Units 1 | . . . . 1 . . . . . . . . . . . Scanalyzers 1 | . . . . . 1 . . . . . . . . . . Garrison Access 3 | . . . . 1 1 . . . . . . . . . 1 Total Hacks 210 | . 6 16 . 29 28 . . 23 . 9 34 3 . 10 52 Successful 102 | . 4 8 . 18 12 . . 23 . 2 10 1 . 6 18 Failed 106 | . 2 7 . 11 16 . . . . 7 24 2 . 4 33 Catastrophic 20 | . 1 1 . 3 3 . . . . 1 5 . . . 6 Database Lockouts 2 | . . 1 . . . . . . . . . . . . 1 Manual 75 | . 4 14 . 14 1 . . . . 1 . 1 . 10 30 Terminals 150 | . 6 16 . 18 12 . . . . 7 31 3 . 10 47 Fabricators 6 | . . . . . 4 . . . . 2 . . . . . Repair Stations 17 | . . . . 8 6 . . . . . 3 . . . . Recycling Units 1 | . . . . 1 . . . . . . . . . . . Scanalyzers 3 | . . . . . 3 . . . . . . . . . . Garrison Access 10 | . . . . 2 3 . . . . . . . . . 5 Terminal Hacks 63 | . 1 3 . 5 4 . . 23 . 2 9 1 . . 15 Record 4 | . . . . . . . . 3 . . . 1 . . . Part Schematic 13 | . . . . 1 1 . . 10 . . . . . . 1 Robot Schematic 8 | . . . . . . . . 7 . . 1 . . . . Robot Analysis 5 | . . 2 . 2 . . . . . . . . . . 1 Prototype ID Bank 8 | . 1 . . 1 1 . . 3 . . 2 . . . . Open Door 6 | . . . . 1 . . . . . . 5 . . . . Branch Access Points 1 | . . . . . . . . . . . . . . . 1 Terminal Index 2 | . . 1 . . . . . . . . . . . . 1 Scanalyzer Index 2 | . . . . . . . . . . 1 . . . . 1 Alert Level 2 | . . . . . . . . . . . . . . . 2 Unreport Threat 1 | . . . . . . . . . . . . . . . 1 Locate Traps 2 | . . . . . . . . . . . 1 . . . 1 Hauler Manifests 2 | . . . . . 1 . . . . . . . . . 1 Registered Components 1 | . . . . . . . . . . . . . . . 1 Registered Prototypes 1 | . . . . . . . . . . . . . . . 1 Zone Layout 5 | . . . . . 1 . . . . 1 . . . . 3 Fabricator Hacks 1 | . . . . . 1 . . . . . . . . . . Load Schematic 1 | . . . . . 1 . . . . . . . . . . Repair Station Hacks 12 | . . . . 8 3 . . . . . 1 . . . . Scan Component 7 | . . . . 4 2 . . . . . 1 . . . . Repair 5 | . . . . 4 1 . . . . . . . . . . Recycling Unit Hacks 1 | . . . . 1 . . . . . . . . . . . Retrieve Components 1 | . . . . 1 . . . . . . . . . . . Scanalyzer 2 | . . . . . 2 . . . . . . . . . . Insert Component 1 | . . . . . 1 . . . . . . . . . . Analyze 1 | . . . . . 1 . . . . . . . . . . Garrison Access Hacks 3 | . . . . 1 1 . . . . . . . . . 1 Seal Access 3 | . . . . 1 1 . . . . . . . . . 1 Unauthorized Hacks 20 | . 3 5 . 3 1 . . . . . . . . 6 2 Terminals 19 | . 3 5 . 3 . . . . . . . . . 6 2 Assimilate 4 | . 1 1 . 1 . . . . . . . . . 1 . Botnet 8 | . 1 3 . 2 . . . . . . . . . 1 1 Operators 4 | . 1 1 . . . . . . . . . . . 1 1 Sabotage 3 | . . . . . . . . . . . . . . 3 . Fabricators . | . . . . . . . . . . . . . . . . Repair Stations 1 | . . . . . 1 . . . . . . . . . . Patch 1 | . . . . . 1 . . . . . . . . . . Recycling Units . | . . . . . . . . . . . . . . . . Scanalyzers . | . . . . . . . . . . . . . . . . Garrison Access . | . . . . . . . . . . . . . . . . Data Cores Recovered 1 | . . 1 . . . . . . . . . . . . . Used . | . . . . . . . . . . . . . . . . Hacking Detections 49 | . 3 6 . 8 9 . . . . 3 13 1 . 1 5 Full Trace Events 5 | . . 1 . . 2 . . . . 1 1 . . . . Feedback Events . | . . . . . . . . . . . . . . . . Feedback Blocked . | . . . . . . . . . . . . . . . . Robot Schematics Acquired 8 | . . . . . . . . 7 . . 1 . . . . Robots Built . | . . . . . . . . . . . . . . . . Authchips . | . . . . . . . . . . . . . . . . Time . | . . . . . . . . . . . . . . . . Total Robot Build Rating . | . . . . . . . . . . . . . . . . Part Schematics Acquired 14 | . . . . 1 2 . . 10 . . . . . . 1 Parts Built . | . . . . . . . . . . . . . . . . Authchips . | . . . . . . . . . . . . . . . . Time . | . . . . . . . . . . . . . . . . Total Part Build Rating . | . . . . . . . . . . . . . . . . Part Studies Acquired . | . . . . . . . . . . . . . . . . Parts Repaired 5 | . . . . 4 1 . . . . . . . . . . Time 178 | . . . . 159 19 . . . . . . . . . . Parts Recycled . | . . . . . . . . . . . . . . . . Recycled Matter . | . . . . . . . . . . . . . . . . Retrieved Matter . | . . . . . . . . . . . . . . . . Retrieved Components 10 | . . . . 10 . . . . . . . . . . . Parts Scanalyzed 1 | . . . . . 1 . . . . . . . . . . Part Schematics Acquired 1 | . . . . . 1 . . . . . . . . . . Parts Damaged . | . . . . . . . . . . . . . . . . Bothacking | -11 -10 -9 -8 -8 -7 -7 -7 -7 -6 -6 -6 -6 -6 -6 -5 ------------ Run | Yrd Mat Mat Mat Sto Fac Low Low Dat Pro Fac Ext Cet Arc Hub Fac Used RIF Installer . | . . . . . . . . . . . . . . . . Robots Hacked . | . . . . . . . . . . . . . . . . Non-combat . | . . . . . . . . . . . . . . . . Combat . | . . . . . . . . . . . . . . . . Robot Hacks Applied . | . . . . . . . . . . . . . . . . Relay Couplers Released . | . . . . . . . . . . . . . . . . Fabnet Peak Effective % . | . . . . . . . . . . . . . . . . Robots Rewired 13 | . . . . . . . . . . . 13 . . . . Allies Hacked . | . . . . . . . . . . . . . . . . Hacks Repelled . | . . . . . . . . . . . . . . . . Allies | -11 -10 -9 -8 -8 -7 -7 -7 -7 -6 -6 -6 -6 -6 -6 -5 -------- Run | Yrd Mat Mat Mat Sto Fac Low Low Dat Pro Fac Ext Cet Arc Hub Fac Total Allies 27 | . . . . . . . . . . . 22 5 . . . Largest Group 20 | . . . . . . . . . . . 20 20 10 8 . Highest-Rated Group 794 | . . . . . . . . . . . 682 794 596 556 . Highest-Rated Ally 159 | . . . . . . . . . . . 159 159 96 96 . Total Orders . | . . . . . . . . . . . . . . . . Ally Attacks 222 | . . . . . . . . . . . 60 74 25 63 . Total Damage 6423 | . . . . . . . . . . . 1364 1875 816 2368 . Kills 36 | . . . . . . . . . . . 7 10 4 15 . Allies Corrupted 2 | . . . . . . . . . . . . . . 2 . Allies Melted . | . . . . . . . . . . . . . . . . Intel | -11 -10 -9 -8 -8 -7 -7 -7 -7 -6 -6 -6 -6 -6 -6 -5 ------- Run | Yrd Mat Mat Mat Sto Fac Low Low Dat Pro Fac Ext Cet Arc Hub Fac Active Infowar (turns) 4168 | . . . . . 942 1321 457 142 392 241 89 . 524 60 . Sensors 3582 | . . . . . 942 1319 457 142 392 241 89 . . . . Jamming 586 | . . . . . . 2 . . . . . . 524 60 . Robot Analysis Total 5 | . . 2 . 2 . . . . . . . . . . 1 Derelict Logs Recovered 3 | . . . . . . 2 . . 1 . . . . . . Drone Launches . | . . . . . . . . . . . . . . . . Drone Recoveries . | . . . . . . . . . . . . . . . . Exploration | -11 -10 -9 -8 -8 -7 -7 -7 -7 -6 -6 -6 -6 -6 -6 -5 ------------- Run | Yrd Mat Mat Mat Sto Fac Low Low Dat Pro Fac Ext Cet Arc Hub Fac Turns Passed 10982 | 72 208 658 142 1250 2037 1381 491 248 396 241 1404 535 831 353 735 Spaces Moved 6254 | 52 116 298 90 618 1325 951 360 116 276 173 786 239 340 158 356 Core 2 | 2 . . . . . . . . . . . . . . . Treads . | . . . . . . . . . . . . . . . . Legs 6252 | 50 116 298 90 618 1325 951 360 116 276 173 786 239 340 158 356 Wheels . | . . . . . . . . . . . . . . . . Hover . | . . . . . . . . . . . . . . . . Flight . | . . . . . . . . . . . . . . . . Fastest Speed 50 | 50 120 120 127 120 122 125 130 130 130 127 120 120 190 120 120 Average Speed 136 | 117 120 125 128 124 127 126 131 130 130 128 134 180 190 185 147 Slowest Speed 260 | 120 120 190 130 190 196 200 200 130 130 130 195 190 190 190 260 Overloaded Moves . | . . . . . . . . . . . . . . . . Propulsion Burnouts . | . . . . . . . . . . . . . . . . Robots Hopped 4 | . . . . . . . . . . . . . . 4 . Potential Cave-ins . | . . . . . . . . . . . . . . . . Cave-ins Triggered . | . . . . . . . . . . . . . . . . Exploration Rate (%) 47 | 4 32 38 11 91 41 84 40 77 46 7 86 67 95 23 10 Regions Visited 15 Branch Regions 9 Pre-discovered Areas 1 | . . . . . . . . 1 . . . . . . . Known Exits Taken 6 | . . . . . 1 1 1 1 1 1 . . . . . Unknown Exits Taken 9 | 1 1 1 1 1 . . . . . . 1 1 1 1 . Scrap Searched 11 | . . . . . . 5 2 . 4 . . . . . . Spaces Dug 110 | . . . . . 5 . 93 . . 2 . 1 . . 9 Terrain Destroyed 498 | . . 7 . 10 33 87 93 9 11 2 20 2 1 174 49 Melee . | . . . . . . . . . . . . . . . . Projectile 29 | . . . . . . 2 . . 1 2 . 2 1 3 18 AOE 469 | . . 7 . 10 33 85 93 9 10 . 20 . . 171 31 Terrain Rammed . | . . . . . . . . . . . . . . . . Walls Destroyed . | . . . . . . . . . . . . . . . . Machines Disabled . | . . . . . . . . . . . . . . . . Actions | -11 -10 -9 -8 -8 -7 -7 -7 -7 -6 -6 -6 -6 -6 -6 -5 --------- Run | Yrd Mat Mat Mat Sto Fac Low Low Dat Pro Fac Ext Cet Arc Hub Fac Total 7841 | 59 146 450 106 923 1531 1103 370 175 296 186 1058 318 433 199 488 Wait 578 | . 6 17 1 156 79 121 . 9 . 5 64 14 37 12 57 Move 6233 | 51 115 297 89 617 1324 950 359 115 275 172 785 238 339 151 356 Hop 3 | . . . . . . . . . . . . . . 3 . Pick Up 91 | 1 5 11 5 14 12 3 2 10 . 1 4 11 2 3 7 Fast Attach 61 | 6 . 4 1 8 6 3 2 2 2 . 10 6 4 3 4 Attach 39 | . . 4 2 2 3 3 . 4 . 1 1 1 . 2 16 Detach 3 | . . . . . . . . . . . . 1 . . 2 Swap 123 | 1 1 16 3 13 18 2 2 9 12 1 16 11 3 8 7 Drop 126 | . . 21 1 18 18 4 . 6 2 1 19 16 5 11 4 Fire 448 | . 19 80 4 91 70 17 5 20 5 5 31 20 42 6 33 Melee . | . . . . . . . . . . . . . . . . Ram . | . . . . . . . . . . . . . . . . Kick 11 | . . . . 4 1 . . . . . 3 . 1 . 2 Crush . | . . . . . . . . . . . . . . . . Escape Stasis 5 | . . . . . . . . . . . 5 . . . . Rewire 120 | . . . . . . . . . . . 120 . . . . Trap . | . . . . . . . . . . . . . . . . Miscellaneous . | . . . . . . . . . . . . . . . . Route ------- -11/Scrapyard -10/Materials -9/Materials (discovered 2 exits: [*Mat x2]) -8/Materials -8/Storage -7/Factory (discovered 2 exits: *Fac / *Low) -7/Lower Caves -7/Lower Caves -7/Data Miner -6/Proximity Caves -6/Factory (discovered 2 exits: Low / *Ext) -6/Extension (discovered 2 exits: *Fac / *Cet) -6/Cetus (discovered 2 exits: *Fac / [*Arc]) -6/Archives (discovered 3 exits: *Fac / *Hub x2) -6/Hub_04(d) (discovered 2 exits: *Fac x2) -5/Factory (discovered 2 exits: Upp x2) History --------- Turn | Location | Event 21 | -11/Scrapyard | Discovered new exit (range 15) 73 | -11/Scrapyard | Entered Materials 267 | -10/Materials | Discovered new exit (range 8) 281 | -10/Materials | Entered another Materials area 281 | -9/Materials | Evolved 2 slots: Propulsion x2 312 | -9/Materials | Build established: Mutant 691 | -9/Materials | Discovered new exit (range 10) 842 | -9/Materials | Central database locked down 887 | -9/Materials | Discovered new exit (range 14) 939 | -9/Materials | Entered another Materials area 939 | -8/Materials | Evolved 2 slots: Utility x1, Weapon x1 1070 | -8/Materials | Discovered new exit (range 6) 1081 | -8/Materials | Entered Storage 1126 | -8/Storage | Garrison activated, responded to threat 1180 | -8/Storage | Destroyed 7 combat bots 1562 | -8/Storage | Build established: Gunner 1787 | -8/Storage | Repaired Titanium Leg 1826 | -8/Storage | Repaired Titanium Leg 1906 | -8/Storage | Build established: Scavenger-Gunner 2118 | -8/Storage | Repaired EMP Blaster 2170 | -8/Storage | Repaired Adv. Beam Cannon 2312 | -8/Storage | Discovered new exit (range 15) 2331 | -8/Storage | Entered Factory 2331 | -7/Factory | Evolved 2 slots: Utility x1, Weapon x1 2669 | -7/Factory | Build established: Scavenger-Skirmisher 3111 | -7/Factory | Build established: Tank 3876 | -7/Factory | Build established: Skirmisher 4206 | -7/Factory | Discovered new exit (range 10) 4241 | -7/Factory | Discovered new exit (range 15) 4246 | -7/Factory | Identified exit to Lower Caves 4314 | -7/Factory | Repaired Titanium Leg 4356 | -7/Factory | Identified exit to Factory 4368 | -7/Factory | Entered Lower Caves 4368 | -7/Lower Caves | Learned Factory emergency access door positions 4529 | -7/Lower Caves | Learned 8 Factory zone layouts 5663 | -7/Lower Caves | Discovered new exit (range 5) 5726 | -7/Lower Caves | Lost 5 parts (1p3n1w) 5739 | -7/Lower Caves | Identified exit to Lower Caves 5749 | -7/Lower Caves | Entered another Lower Caves area 6218 | -7/Lower Caves | Discovered new exit (range 13) 6238 | -7/Lower Caves | Identified exit to Data Miner 6240 | -7/Lower Caves | Entered Data Miner 6240 | -7/Data Miner | Discovered new exit (range 7) 6266 | -7/Data Miner | Met Data Miner 6289 | -7/Data Miner | Learned location of Section 7 (-2) 6289 | -7/Data Miner | Acquired the access code to Warlord's prototype stash 6307 | -7/Data Miner | Received God Mode back door access code from Data Miner 6331 | -7/Data Miner | Data Conduit disabled 6412 | -7/Data Miner | System corruption reached 10% 6450 | -7/Data Miner | Lost 3 parts (1p2u) 6486 | -7/Data Miner | Identified exit to Proximity Caves 6488 | -7/Data Miner | Entered Proximity Caves 6491 | -6/Proximity Caves | Spotter reported a threat 6762 | -6/Proximity Caves | Learned Factory trap positions 6827 | -6/Proximity Caves | Discovered exit to Factory (range 14) 6851 | -6/Proximity Caves | System corruption reached 30% 6872 | -6/Proximity Caves | Attracted the attention of an 0b10 checkpoint 6884 | -6/Proximity Caves | Entered Factory 6884 | -6/Factory | Evolved 2 slots: Power x1, Weapon x1 6885 | -6/Factory | Identified exit to Lower Caves 6886 | -6/Factory | Loaded intel: 87 trap records 7096 | -6/Factory | Discovered new exit (range 13) 7123 | -6/Factory | Identified exit to Extension 7125 | -6/Factory | Entered Extension 7223 | -6/Extension | Rescued A7 7272 | -6/Extension | Rescued a captive Derelict 7292 | -6/Extension | Rescued a captive Derelict 7684 | -6/Extension | Build established: Scavenger-Tank 7819 | -6/Extension | Spotted B-75 Beast 7832 | -6/Extension | Destroyed B-75 Beast 7841 | -6/Extension | Spotted B-75 Beast 7854 | -6/Extension | Allies destroyed B-75 Beast 8015 | -6/Extension | Rescued a captive Derelict 8015 | -6/Extension | Rescued a captive Derelict 8079 | -6/Extension | Rescued a captive Derelict 8101 | -6/Extension | Rescued a captive Derelict 8265 | -6/Extension | Build established: Commander-Tank 8376 | -6/Extension | Rescued a captive Derelict 8377 | -6/Extension | Rescued a captive Derelict 8445 | -6/Extension | Discovered new exit (range 10) 8447 | -6/Extension | Discovered new exit (range 6) 8529 | -6/Extension | Entered Cetus 8529 | -6/Cetus | Accompanied by 20 allies (A7) 8534 | -6/Cetus | Acquired a Cetus Manufacturing Module code from A7 8545 | -6/Cetus | Spotted Cetus Guard 8558 | -6/Cetus | Spotted Cetus Guard 8559 | -6/Cetus | Spotted Cetus Guard 8559 | -6/Cetus | Spotted Cetus Guard 8583 | -6/Cetus | Allies destroyed Cetus Guard 8589 | -6/Cetus | Allies destroyed Cetus Guard 8592 | -6/Cetus | Allies destroyed Cetus Guard 8596 | -6/Cetus | Allies destroyed Cetus Guard 8619 | -6/Cetus | Lost 9 allies 8688 | -6/Cetus | Started Cetus Manufacturing Module 8706 | -6/Cetus | Escorted A7 to Cetus Mainframe 8713 | -6/Cetus | Manufactured an Enhanced Grunt 8736 | -6/Cetus | Discovered new exit (range 16) 8738 | -6/Cetus | Manufactured an Enhanced Grunt 8763 | -6/Cetus | Manufactured an Enhanced Grunt 8769 | -6/Cetus | Spotted Cetus Guard 8769 | -6/Cetus | Spotted Cetus Guard 8774 | -6/Cetus | Spotted Cetus Guard 8775 | -6/Cetus | Spotted Cetus Guard 8781 | -6/Cetus | Allies destroyed Cetus Guard 8788 | -6/Cetus | Manufactured an Enhanced Grunt 8790 | -6/Cetus | Allies destroyed Cetus Guard 8792 | -6/Cetus | Allies destroyed Cetus Guard 8793 | -6/Cetus | Allies destroyed Cetus Guard 8796 | -6/Cetus | Discovered new exit (range 16) 8809 | -6/Cetus | Met Revision 17 8813 | -6/Cetus | Manufactured an Enhanced Grunt 8824 | -6/Cetus | Lost 4 allies 8953 | -6/Cetus | Found a strange terminal 9043 | -6/Cetus | Murdered A7 9050 | -6/Cetus | Extracted ID and sensor layout for unrecognized location from A7's data core 9064 | -6/Cetus | Entered Archives 9064 | -6/Archives | Accompanied by 10 allies 9136 | -6/Archives | Discovered new exit (range 15) 9264 | -6/Archives | Discovered new exit (range 14) 9340 | -6/Archives | Discovered new exit (range 14) 9361 | -6/Archives | Build established: Scavenger-Tank 9440 | -6/Archives | System corruption reached 10% 9895 | -6/Archives | Entered Hub_04(d) 9895 | -6/Hub_04(d) | Accompanied by 9 allies 9922 | -6/Hub_04(d) | Discovered new exit (range 16) 9993 | -6/Hub_04(d) | Lost 3 allies 10065 | -6/Hub_04(d) | Discovered new exit (range 5) 10162 | -6/Hub_04(d) | Network Hub disabled 10173 | -6/Hub_04(d) | Spotted Lightning 10174 | -6/Hub_04(d) | Spotted Lightning 10182 | -6/Hub_04(d) | Spotted Lightning 10193 | -6/Hub_04(d) | Spotted Lightning 10197 | -6/Hub_04(d) | Spotted Lightning 10217 | -6/Hub_04(d) | Spotted Lightning 10218 | -6/Hub_04(d) | Lost 3 allies 10241 | -6/Hub_04(d) | System corruption reached 30% 10245 | -6/Hub_04(d) | Network Hub disabled 10248 | -6/Hub_04(d) | Entered Factory 10248 | -5/Factory | Evolved 2 slots: Propulsion x1, Weapon x1 10276 | -5/Factory | Lost 4 parts (2p1n1w) 10414 | -5/Factory | Central database locked down 10525 | -5/Factory | Build established: Scavenger-Executioner 10651 | -5/Factory | Identified exit to Upper Caves 10941 | -5/Factory | Core integrity fell below 50% 10983 | -5/Factory | Self-destructed Last Messages --------------- 10944_ Lgt. Angular Momentum Engine destroyed. 10947_ Extracted 15 energy. 10948_ Extracted 20 energy. 10948_ Flexi-carbon Leg destroyed. 10949_ Acquired Imp. Energy Well. 10951_ Acquired Antimatter Reactor. 10953_ Acquired 48 matter. 10956_ Acquired Gatling Laser. 10961_ Adv. Variable Charge Gun destroyed. 10963_ Centrium Medium Armor Plating destroyed. 10969_ System corrupted: Gatling Laser rejected. 10969_ Kicked X-77 Beamer out of the way. 10975_ Acquired 45 matter. 10975_ K-01 Serf cleans the Pressure Siphon. 10979_ Enh. Flexi-carbon Leg destroyed. 10981_ K-01 Serf collects debris. 10982_ Carbon-fiber Leg destroyed. 10982_ Critical hit (Burn: +37). 10983_ P-70 Sage resets X-77 Beamer, system corruption cleaned. 10983_ Broken Enh. Flexi-carbon Leg destroyed. Map ----- +----------------------------------------------------+ | !! ############+#+#??? | | ############+########### #?????????????????? | | ?????# #???### ###?????????????????? | | ?????# """" """" #?????# ##??????????????????? | | ?????# """" """" #?????# ##??????????????????? | | ?????# """" """" #?????# ##########??????????? | | ?????# """" """" #?????# ## #??????????? | | ?????# #????## ## """ #??????????? | | ###### """" """" #????## ## "T" #??????????? | | T # """" """" #????## ## #??????????? | | # """" """" #????#! % ## #??????????? | | # """" """" #????#"u u## """"" #??????????? | | # #????## ## """"" #??????????? | | ##################### ## """ #??????????? | | #?????# ## ## #######????? | | #?????# = ## ## """"" # #????? | | "" ####### """"" = ## ## """"" # #????? | | "" + + """"" [[ # # """ # #????? | | """ ####### """"""%= #%u # + #????? | | """ #?????# """""" + # """"" # #????? | | """ #?????# =#xxx # """"" # ###### | | #?????# """" # # """ # #!!! | | ##########?# """""" # R # # #!!! | | # #?# """""" # kk ######### #!!! | | # = #?# """""" # # | | # #?# #@g + """ | | + #?############## """ """ """ # """ | | # #??????????????#g """ """ """ # """ | | # """ #??????????????# """ """ """ # | | # """ #??????????????# """ """ ###### | | # """ #??????????????# ! # | | # #?############## """ """ # " | | ##########?# # """ """ + " | | #??????????# # """ """ !! # " | | #??????????# # """ """ ![ # | | ############ """ # ![ # ! " | | ## ## """"" # """ """ ######## " | | ## """" "## """"" # """ """ # ! # " | | # """" "## # """ """ # ! " | | # """" "## """ # """ """ / "##### | | + """" T"" """"" # # " #??# | | # """" "## """"" # """ """ ! " " #??# | | # """" "## # """ """ " " #??# | | ## """" "## # """ """ " ""#### | | ?# ###########+### """ " " | | ?##########??????# " %"##### | | ?????????????????# """ """ " "#???? | | ?????????????????# " """ """ + #???? | | ?????????????????# "G" """ """ # "#???? | | ?????????????????# " " """ """ # "T" # #??? | +----------------------------------------------------+ Best States ------------- Heat Dissipation 91 Energy Generation 45 Energy Capacity 600 Matter Stores 300 Matter Capacity 300 Sight Range 16 Robot Scan Range 15 Terrain Scan Density 10 Jamming Range 12 Armor Coverage 450 Resistance: EM 20 Evasion (%) 55 Particle Charging 20 Offensive Hacking 12 Defensive Hacking 12 Authchip Count 1 Item Schematics ----------------- Carbon-fiber Leg | -8/Storage | Hacked Titanium Leg | -7/Factory | Scanalyzed Adv. Signal Interpreter | -7/Factory | Hacked Combat Drone Bay | -7/Data Miner | Free Lgt. Regenerative Plating | -7/Data Miner | Free Biomechanical Wings | -7/Data Miner | Free Gravity Neutralizer | -7/Data Miner | Free Antimatter Cannon | -7/Data Miner | Free Antigrav System | -7/Data Miner | Free Imp. Launcher Guidance Computer | -7/Data Miner | Free Imp. Plasma Cutter | -7/Data Miner | Free Drone Bay | -7/Data Miner | Free Imp. Arc Projector | -7/Data Miner | Free Hyb. Antimatter Reactor | -5/Factory | Hacked Robot Schematics ------------------ L-41 Fighter | -7/Data Miner | Free R-10 Processor | -7/Data Miner | Free E-15 Imp | -7/Data Miner | Free S-27 Virus | -7/Data Miner | Free M-22 Extractor | -7/Data Miner | Free G-50 Soldier | -7/Data Miner | Free Y-64 Sentinel | -7/Data Miner | Free B-48 Gladiator | -6/Extension | Hacked Fabricated ------------ Nothing Repaired ---------- Titanium Leg | 11% | -8/Storage Titanium Leg | 22% | -8/Storage EMP Blaster | 21% | -8/Storage Adv. Beam Cannon | 24% | -8/Storage Titanium Leg | 6% | -7/Factory Studied --------- None Alien Tech Used ----------------- None Achievements -------------- None Challenges ------------ None Game ------ Seed PortableMachineNetwork Manual? 0 Play Time 01:48:40 Cumulative 239.8 hours Start 2025.11.09 @ 16:04:59 End 2025.11.09 @ 20:34:56 Sessions 1 Manual Loads 0 Difficulty Rogue Special Mode None Game No. 243 Rogue 239 Adventurer 3 Explorer 1 Win Type - Total 1 Types 1/0/0/0/0/0/0/0/0/0 Lore% 74 Gallery% 74 Achievement% 57 Wizard Run 0 Options --------- Layout 0 ASCII 0 Keyboard 0 Movement Mouse Keybinds 0 Fullscreen 2 Font 18/SmallcapsGlow Map View 76x50 Zoom Use 0% Tactical HUD 1 Map Filters NONE Filters NONE Steam 1 RUN: 3c64602a-a4c9-4390-8cf8-f73d3e8c6e2e